bitfinex/quotes_BTCUSD_20240731
["timestamp","ask_amount","ask_price","bid_price","bid_amount"]
[1722409428575,1.21063565,66508.0,66503.0,0.1024672]
[1722409428772,0.135135,66505.0,66503.0,0.1024672]
[1722409429059,0.90945927,66504.0,66503.0,0.0024672]
[1722409429438,0.90945927,66504.0,66503.0,0.000913]
[1722409429699,1.06009231,66504.0,66503.0,0.000913]
[1722409429950,1.21045831,66504.0,66503.0,0.000913]
[1722409430336,1.73068062,66504.0,66503.0,0.000913]
[1722409430541,1.73068062,66504.0,66484.0,0.000924]
[1722409430542,0.150409,66485.0,66484.0,0.000924]
[1722409430744,0.16917018,66485.0,66484.0,0.000924]
[1722409430944,0.10904415,66485.0,66484.0,0.151336]
[1722409431138,0.10904415,66485.0,66484.0,0.752984]
[1722409431358,0.01853714,66485.0,66484.0,0.752984]
[1722409431557,0.4724,66497.0,66489.0,0.1504]
[1722409431558,0.13512136,66490.0,66489.0,0.1504]
[1722409431757,0.85941026,66490.0,66489.0,0.1504]
[1722409431979,0.85941026,66490.0,66488.0,0.150401]
[1722409431980,0.72586637,66490.0,66488.0,0.150401]
[1722409432207,0.72586637,66490.0,66487.0,0.150404]
[1722409432208,0.34944029,66489.0,66487.0,0.150404]
[1722409432388,0.34944029,66488.0,66487.0,0.150405]
[1722409432533,0.34944029,66488.0,66487.0,0.451215]
[1722409432741,0.34944029,66488.0,66487.0,0.752025]
[1722409432977,0.34944029,66488.0,66487.0,0.451215]
[1722409433779,0.35044029,66488.0,66487.0,0.451215]
[1722409433984,1.23324396,66488.0,66487.0,0.001]
[1722409434196,1.62397672,66488.0,66487.0,0.001]
[1722409434892,0.451228,66485.0,66484.0,0.000924]
[1722409435122,0.70741446,66485.0,66484.0,0.000924]
[1722409435330,1.47560872,66485.0,66484.0,0.000924]
[1722409435567,1.17478972,66485.0,66484.0,0.000924]
[1722409436100,1.47560872,66485.0,66484.0,0.000924]
[1722409436723,1.47560872,66485.0,66484.0,0.002924]
[1722409437197,1.00842686,66485.0,66484.0,0.002924]
[1722409437402,1.00942686,66485.0,66484.0,0.002924]
[1722409437599,1.14426806,66485.0,66484.0,0.002924]
[1722409437833,1.0541479,66485.0,66484.0,0.002924]
[1722409438037,1.14426835,66485.0,66484.0,0.002924]
[1722409438243,1.00942685,66485.0,66484.0,0.002924]
[1722409438445,1.14426835,66485.0,66484.0,0.002924]
[1722409439239,1.00942685,66485.0,66484.0,0.002924]
[1722409439439,1.00942685,66485.0,66484.0,0.000924]
[1722409439591,1.14426835,66485.0,66484.0,0.000924]
[1722409439795,1.01342685,66485.0,66484.0,0.000924]
[1722409439994,0.71260785,66485.0,66484.0,0.000924]
[1722409440195,0.26837985,66485.0,66484.0,0.001924]
[1722409440467,0.1782597,66485.0,66484.0,0.45316]
[1722409440654,0.10184911,66485.0,66484.0,0.45316]
[1722409440864,0.012,66485.0,66484.0,0.45316]
[1722409441076,0.012,66485.0,66484.0,0.001924]
[1722409441077,0.07938552,66485.0,66484.0,0.001924]
[1722409441233,0.012,66485.0,66484.0,0.001924]
[1722409441442,0.1243092,66485.0,66484.0,0.001924]
[1722409441858,0.07938183,66485.0,66484.0,0.753984]
[1722409442055,0.012,66485.0,66484.0,0.45316]
[1722409442264,0.07938183,66485.0,66484.0,0.45316]
[1722409442463,0.012,66485.0,66484.0,0.45316]
[1722409445389,0.012,66485.0,66484.0,0.753984]
[1722409445572,0.012,66485.0,66484.0,0.45316]
[1722409446576,0.012,66485.0,66484.0,0.753984]
[1722409446777,0.012,66485.0,66484.0,0.45316]
[1722409446981,0.012,66485.0,66484.0,0.753984]
[1722409447494,0.012,66485.0,66484.0,0.898984]
[1722409447655,0.005,66485.0,66484.0,1.222808]
[1722409447831,0.01,66485.0,66484.0,1.223808]
[1722409448290,0.01,66485.0,66484.0,1.323808]
[1722409448498,0.005,66485.0,66484.0,1.323808]
[1722409449012,0.005,66485.0,66484.0,1.624632]
[1722409449807,0.005,66485.0,66484.0,1.322808]
[1722409450005,0.04493512,66494.0,66493.0,0.751957]
[1722409450196,0.04493512,66494.0,66493.0,0.895957]
[1722409450393,0.08987025,66497.0,66496.0,0.751922]
[1722409450394,0.04493512,66497.0,66496.0,0.751922]
[1722409450608,0.04494011,66500.0,66499.0,0.150378]
[1722409450782,0.08987025,66503.0,66502.0,0.451113]
[1722409450783,0.04494011,66503.0,66502.0,0.451113]
[1722409450989,0.04494011,66505.0,66497.0,0.144]
[1722409451202,0.04494011,66505.0,66504.0,0.451099]
[1722409451456,0.04494011,66506.0,66505.0,0.751822]
[1722409451648,0.06740269,66507.0,66506.0,0.451086]
[1722409451864,0.06740269,66507.0,66506.0,0.75181]
[1722409452340,0.11232538,66510.0,66509.0,0.300711]
[1722409452763,0.0647,66517.0,66512.0,0.150348]
[1722409452968,0.72791338,66516.0,66512.0,0.150348]
[1722409453161,0.44248552,66515.0,66512.0,0.150348]
[1722409453367,0.59311856,66514.0,66512.0,0.150348]
[1722409453580,0.35141857,66513.0,66511.0,0.150351]
[1722409453747,0.35141857,66512.0,66511.0,0.150351]
[1722409454933,0.35141857,66512.0,66511.0,0.151351]
[1722409455340,0.35141857,66512.0,66511.0,0.451053]
[1722409455532,0.33372014,66512.0,66511.0,0.898355]
[1722409455747,0.11731231,66512.0,66511.0,0.898355]
[1722409455943,0.11731231,66512.0,66511.0,0.597653]
[1722409455944,0.33871046,66512.0,66511.0,0.597653]
[1722409456083,0.33871046,66512.0,66511.0,0.531153]
[1722409456474,0.33871046,66512.0,66511.0,0.230451]
[1722409456475,0.42855248,66512.0,66511.0,0.230451]
[1722409456680,0.42855248,66512.0,66511.0,0.150351]
[1722409456901,0.42355248,66512.0,66511.0,0.150351]
[1722409457229,0.42755248,66512.0,66511.0,0.151351]
[1722409457370,0.42755248,66512.0,66511.0,0.452053]
[1722409457571,0.42755248,66512.0,66511.0,0.451053]
[1722409457775,0.42355248,66512.0,66511.0,0.451053]
[1722409457977,0.42455248,66512.0,66511.0,0.150351]
[1722409458172,0.33871046,66512.0,66511.0,0.751755]
[1722409458376,0.005,66512.0,66511.0,1.052457]
[1722409460098,0.04491624,66516.0,66515.0,0.75171]
[1722409460972,0.04491624,66517.0,66516.0,0.751697]
[1722409462056,0.0804,66525.0,66520.0,0.15033]
[1722409462259,0.59654238,66522.0,66520.0,0.15033]
[1722409462492,0.15063304,66522.0,66520.0,0.15033]
[1722409462670,0.33366353,66521.0,66520.0,0.15033]
[1722409462874,0.48429657,66521.0,66520.0,0.15033]
[1722409463333,0.57408846,66521.0,66518.0,0.150334]
[1722409463531,0.48429657,66520.0,66519.0,0.150332]
[1722409464526,0.15063304,66520.0,66519.0,0.150332]
[1722409464726,0.15563304,66520.0,66519.0,0.151332]
[1722409465102,0.15763304,66520.0,66519.0,0.151332]
[1722409465708,0.22496529,66520.0,66519.0,0.151332]
[1722409468523,1.53620271,66520.0,66519.0,0.001]
[1722409468726,1.53620271,66520.0,66494.0,0.0799]
[1722409468727,0.1458,66514.0,66503.0,0.1015542]
[1722409468947,0.04489078,66508.0,66507.0,0.150359]
[1722409469299,0.04489078,66508.0,66505.0,0.150363]
[1722409469620,0.04489078,66508.0,66506.0,0.1]
[1722409470048,0.04489078,66508.0,66503.0,0.00886728]
[1722409470049,0.15063304,66507.0,66503.0,0.00886728]
[1722409470226,0.15063304,66507.0,66504.0,0.150366]
[1722409470227,0.19552382,66507.0,66504.0,0.150366]
[1722409470453,0.19552382,66507.0,66502.0,0.300741]
[1722409470587,0.19552382,66507.0,66506.0,0.150362]
[1722409471016,0.19552382,66507.0,66504.0,0.150365]
[1722409471221,0.19552382,66507.0,66505.0,0.150364]
[1722409471460,0.19652382,66507.0,66505.0,0.150364]
[1722409471806,0.20052875,66507.0,66505.0,0.150364]
[1722409472015,0.20152875,66507.0,66505.0,0.150364]
[1722409472233,0.19752875,66507.0,66504.0,0.150366]
[1722409472447,0.19552763,66507.0,66504.0,0.150366]
[1722409472652,0.19552763,66507.0,66502.0,0.00901097]
[1722409473063,0.19552763,66507.0,66500.0,0.300747]
[1722409473294,0.06734188,66509.0,66505.0,0.150362]
[1722409473295,0.04489459,66506.0,66505.0,0.150362]
[1722409473506,0.06734188,66508.0,66507.0,0.45108]
[1722409473708,0.04489858,66508.0,66507.0,0.45108]
[1722409473914,0.06734188,66509.0,66508.0,0.150357]
[1722409474122,0.08602646,66509.0,66507.0,0.150359]
[1722409474344,0.04489471,66508.0,66506.0,0.300723]
[1722409474559,0.04489471,66508.0,66507.0,0.45108]
[1722409474760,0.01818974,66508.0,66507.0,0.45108]
[1722409474916,0.02018974,66508.0,66507.0,0.45108]
[1722409475096,0.01818974,66508.0,66507.0,0.45108]
[1722409475294,0.0630837,66508.0,66507.0,0.45108]
[1722409475497,0.02018974,66508.0,66507.0,0.45108]
[1722409476322,0.06508301,66508.0,66507.0,0.45108]
[1722409476524,0.02018974,66508.0,66507.0,0.45108]
[1722409476889,0.01818974,66508.0,66507.0,0.45108]
[1722409477001,0.02218974,66508.0,66507.0,0.45108]
[1722409477204,0.02318974,66508.0,66507.0,0.45108]
[1722409477605,0.17382278,66508.0,66506.0,0.00915915]
[1722409477827,0.21372194,66507.0,66506.0,0.150362]
[1722409478021,0.21372194,66507.0,66503.0,0.100913]
[1722409478251,0.21372194,66507.0,66503.0,0.1024672]
[1722409478252,0.01818974,66506.0,66503.0,0.1024672]
[1722409478470,0.16882278,66506.0,66504.0,0.150365]
[1722409478691,0.01818974,66505.0,66504.0,0.150365]
[1722409478917,0.01818974,66505.0,66504.0,0.250365]
[1722409480225,0.01818974,66505.0,66504.0,0.250366]
[1722409481195,0.01818974,66505.0,66504.0,0.853832]
[1722409481676,0.06308818,66505.0,66504.0,0.853832]
[1722409482109,0.06311355,66505.0,66504.0,0.853832]
[1722409482318,0.01818974,66505.0,66504.0,0.853832]
[1722409483249,0.08557545,66505.0,66504.0,0.853832]
[1722409484277,0.01818974,66505.0,66504.0,0.853832]
[1722409484509,0.44175703,66505.0,66504.0,0.853832]
[1722409484922,0.44184621,66505.0,66504.0,0.853832]
[1722409485359,0.35190949,66505.0,66504.0,0.853832]
[1722409486111,0.35190949,66505.0,66504.0,0.553099]
[1722409487348,0.35190949,66505.0,66504.0,0.853832]
[1722409487558,0.44189297,66505.0,66504.0,0.853832]
[1722409487777,0.04498823,66506.0,66505.0,0.751822]
[1722409488200,0.06748652,66508.0,66507.0,0.45108]
[1722409488461,0.08998348,66509.0,66508.0,0.751787]
[1722409488646,0.1124209,66511.0,66510.0,0.150353]
[1722409488855,0.13646606,66511.0,66510.0,0.751765]
[1722409489275,0.02404516,66511.0,66510.0,0.751765]
[1722409489480,0.13656874,66511.0,66510.0,0.751765]
[1722409489658,0.35772721,66511.0,66510.0,0.751765]
[1722409490873,0.36272721,66511.0,66510.0,0.751765]
[1722409491286,0.36973414,66511.0,66510.0,0.751765]
[1722409491701,0.36973195,66511.0,66510.0,0.751765]
[1722409492300,0.36973195,66511.0,66510.0,0.76057522]
[1722409493535,0.50486793,66511.0,66510.0,0.76057522]
[1722409494321,0.12865195,66511.0,66510.0,0.76057522]
[1722409494612,0.12865101,66511.0,66510.0,0.76057522]
[1722409494811,0.8369043,66511.0,66510.0,0.76057522]
[1722409495302,0.92957858,66511.0,66510.0,0.76057522]
[1722409495455,0.8369043,66511.0,66510.0,0.76057522]
[1722409495916,0.8369043,66511.0,66510.0,1.06128122]
[1722409496833,0.92944396,66511.0,66510.0,1.06128122]
[1722409497782,0.83689876,66511.0,66510.0,1.13768122]
[1722409497981,0.03604516,66511.0,66510.0,1.13768122]
[1722409498470,0.83688038,66511.0,66510.0,1.13768122]
[1722409498657,0.83688038,66511.0,66510.0,1.16068122]
[1722409499059,0.82988038,66511.0,66510.0,1.16068122]
[1722409499893,0.82488038,66511.0,66510.0,1.16068122]
[1722409500099,0.82988038,66511.0,66510.0,1.16068122]
[1722409500704,0.83688038,66511.0,66510.0,1.16068122]
[1722409500904,0.83687875,66511.0,66510.0,1.16068122]
[1722409501105,0.82987875,66511.0,66510.0,1.16068122]
[1722409501319,0.03004516,66511.0,66510.0,1.16368122]
[1722409501531,0.83088295,66511.0,66510.0,1.16768122]
[1722409501949,0.49904693,66511.0,66510.0,1.26768122]
[1722409502147,0.49904693,66511.0,66510.0,1.26368122]
[1722409502362,0.50004693,66511.0,66510.0,1.26768122]
[1722409502922,0.49404693,66511.0,66510.0,1.26468122]
[1722409503328,0.49504693,66511.0,66510.0,1.26768122]
[1722409503669,0.3356746,66511.0,66510.0,1.32928122]
[1722409503858,0.3356746,66511.0,66510.0,1.62998722]
[1722409505609,0.3356746,66511.0,66510.0,1.32928122]
[1722409506658,0.002,66511.0,66510.0,1.32928122]
[1722409506860,0.33565647,66511.0,66510.0,1.32928122]
[1722409509891,0.33565647,66511.0,66510.0,1.19128122]
[1722409510164,0.35785466,66511.0,66510.0,0.89057522]
[1722409510377,0.96028777,66511.0,66510.0,0.56686922]
[1722409510591,0.99408161,66511.0,66510.0,0.11581022]
[1722409510800,1.05458161,66511.0,66510.0,0.56686922]
[1722409511156,1.05358161,66511.0,66510.0,0.56286922]
[1722409511569,1.05258161,66511.0,66510.0,0.55986922]
[1722409511826,1.05458161,66511.0,66510.0,0.55986922]
[1722409511982,1.05558161,66511.0,66510.0,0.55986922]
[1722409512144,1.05358161,66511.0,66510.0,0.55986922]
[1722409512544,1.05758161,66511.0,66510.0,0.55986922]
[1722409512750,0.91988161,66511.0,66510.0,0.86057522]
[1722409512956,0.91988161,66511.0,66510.0,0.92507522]
[1722409512957,0.82801453,66511.0,66510.0,0.92507522]
[1722409513159,0.96332608,66511.0,66510.0,1.22578122]
[1722409513364,0.36088098,66511.0,66510.0,1.24878122]
[1722409513571,0.82803745,66511.0,66510.0,1.24878122]
[1722409513766,0.82304713,66511.0,66510.0,1.24878122]
[1722409514176,0.82604713,66511.0,66510.0,1.24878122]
[1722409514914,0.91547104,66511.0,66510.0,1.18428122]
[1722409515113,0.91847104,66511.0,66510.0,1.18428122]
[1722409515516,0.91547104,66511.0,66510.0,0.86057522]
[1722409515899,0.97927104,66511.0,66510.0,0.86057522]
[1722409516541,0.97929698,66511.0,66510.0,0.55986922]
[1722409516934,0.97929698,66511.0,66510.0,0.56286922]
[1722409517113,0.97929698,66511.0,66510.0,0.56386922]
[1722409517315,0.97929698,66511.0,66510.0,0.56086922]
[1722409517545,0.97929698,66511.0,66510.0,0.55986922]
[1722409517977,0.98229698,66511.0,66510.0,0.55986922]
[1722409518408,0.97929698,66511.0,66510.0,0.55986922]
[1722409518820,0.98229698,66511.0,66510.0,0.55986922]
[1722409519560,0.98229698,66511.0,66510.0,0.86057522]
[1722409519785,0.98224621,66511.0,66510.0,0.86057522]
[1722409520194,0.97924621,66511.0,66510.0,0.86057522]
[1722409520395,0.91544621,66511.0,66510.0,0.86057522]
[1722409520592,0.91844621,66511.0,66510.0,0.86057522]
[1722409522344,0.82607255,66511.0,66510.0,1.00197522]
[1722409522545,0.33669769,66511.0,66510.0,1.32568122]
[1722409522747,0.15307552,66519.0,66512.0,0.012]
[1722409522748,0.39379725,66513.0,66512.0,0.012]
[1722409522968,0.00083,66519.0,66518.0,0.451005]
[1722409522969,0.09103545,66519.0,66518.0,0.451005]
[1722409523165,0.0684835,66519.0,66518.0,1.316445]
[1722409523368,0.00083,66519.0,66518.0,1.316445]
[1722409523571,0.00083,66519.0,66518.0,1.617115]
[1722409524452,0.04590721,66519.0,66518.0,1.617115]
[1722409524655,0.04590721,66519.0,66518.0,1.620115]
[1722409524656,0.04690721,66519.0,66518.0,1.620115]
[1722409525002,0.04690721,66519.0,66518.0,1.623115]
[1722409525003,0.04790721,66519.0,66518.0,1.623115]
[1722409525206,0.00283,66519.0,66518.0,1.623115]
[1722409525369,0.00283,66519.0,66518.0,1.99914804]
[1722409526387,0.00283,66519.0,66518.0,2.02801225]
[1722409526827,0.00283,66519.0,66518.0,2.00801225]
[1722409527137,0.00283,66519.0,66518.0,1.63197921]
[1722409530345,0.00255794,66519.0,66518.0,1.81461225]
[1722409530554,0.00255794,66519.0,66518.0,2.03001225]
[1722409530760,9.4e-07,66519.0,66518.0,2.12049225]
[1722409530963,9.4e-07,66519.0,66518.0,2.51531601]
[1722409532209,0.00083,66532.0,66531.0,0.924927]
[1722409532210,0.00055862,66532.0,66531.0,0.924927]
[1722409532409,0.00847,66552.0,66551.0,0.450781]
[1722409532612,0.00847,66552.0,66551.0,1.314023]
[1722409533529,0.00847,66552.0,66551.0,1.77517704]
[1722409533734,0.00847,66552.0,66551.0,1.76917704]
[1722409533735,0.00659626,66552.0,66551.0,1.76917704]
[1722409533936,0.00392916,66552.0,66551.0,1.618544]
[1722409534140,0.00292916,66552.0,66551.0,1.614544]
[1722409534362,0.00492916,66552.0,66551.0,1.627544]
[1722409534783,0.00392916,66552.0,66551.0,1.622544]
[1722409534951,0.00492916,66552.0,66551.0,1.627544]
[1722409535375,0.00392916,66552.0,66551.0,1.80317704]
[1722409536364,0.00392916,66552.0,66551.0,2.09569804]
[1722409536365,0.00292916,66552.0,66551.0,2.09569804]
[1722409536572,0.0015,66560.0,66559.0,1.382182]
[1722409536772,0.0015,66560.0,66559.0,2.24249504]
[1722409536973,0.0015,66560.0,66559.0,2.56598004]
[1722409537901,0.0015,66560.0,66559.0,2.57298004]
[1722409538321,1e-06,66560.0,66559.0,2.57298004]
[1722409539624,1e-06,66560.0,66559.0,2.09389504]
[1722409539836,1e-06,66560.0,66559.0,2.11389504]
[1722409540271,1e-06,66560.0,66559.0,1.77801504]
[1722409540510,1e-06,66560.0,66559.0,1.79720318]
[1722409540711,1e-06,66560.0,66559.0,1.80220318]
[1722409540915,1e-06,66560.0,66559.0,1.64700318]
[1722409541122,0.000831,66560.0,66559.0,1.64700318]
[1722409543547,0.000831,66560.0,66559.0,1.49637014]
[1722409544157,0.000831,66560.0,66559.0,1.19588514]
[1722409544356,2.556e-05,66560.0,66559.0,1.19588514]
[1722409544971,2.556e-05,66560.0,66559.0,1.19631362]
[1722409545846,2.556e-05,66560.0,66559.0,1.1971688]
[1722409546048,2.556e-05,66560.0,66559.0,1.19631362]
[1722409546253,0.0081975,66561.0,66560.0,1.05168]
[1722409546482,0.0081975,66561.0,66560.0,1.17564235]
[1722409546717,0.0081975,66561.0,66560.0,1.17468]
[1722409546927,0.0081975,66561.0,66560.0,1.1762342]
[1722409547129,0.0081975,66561.0,66560.0,1.17468]
[1722409547546,0.0091975,66561.0,66560.0,1.1859488]
[1722409547954,0.0091975,66561.0,66560.0,0.8854688]
[1722409548412,0.0091975,66561.0,66560.0,0.8870688]
[1722409549048,0.0091975,66561.0,66560.0,0.5635888]
[1722409549049,0.1479975,66561.0,66560.0,0.5635888]
[1722409549256,0.1479975,66561.0,66560.0,0.1631088]
[1722409549464,0.1479975,66561.0,66560.0,0.4635888]
[1722409549665,0.1479975,66561.0,66560.0,0.1631088]
[1722409550244,0.1479975,66561.0,66560.0,0.4635888]
[1722409550482,0.1479975,66561.0,66560.0,0.7640688]
[1722409551034,0.1479975,66561.0,66560.0,0.8640688]
[1722409556912,0.14773463,66561.0,66560.0,0.8640688]
[1722409557116,0.14747083,66561.0,66560.0,1.1645488]
[1722409557291,0.14747083,66561.0,66560.0,0.8640688]
[1722409558023,0.14747083,66561.0,66560.0,1.1645488]
[1722409560120,0.14747083,66561.0,66560.0,1.16497726]
[1722409560320,0.18280642,66561.0,66560.0,1.16497726]
[1722409560917,0.00867083,66561.0,66560.0,1.16497726]
[1722409561118,0.00867083,66561.0,66560.0,1.54905725]
[1722409562372,0.00867083,66561.0,66560.0,1.62885725]
[1722409563529,0.00867083,66561.0,66560.0,1.62485725]
[1722409563879,0.00967083,66561.0,66560.0,1.63585725]
[1722409564225,0.00867083,66561.0,66560.0,1.62885725]
[1722409564451,0.00767083,66561.0,66560.0,1.63185725]
[1722409564683,0.00867083,66561.0,66560.0,1.79449029]
[1722409564863,0.00867083,66561.0,66560.0,2.12497028]
[1722409565275,0.0005,66569.0,66568.0,1.501798]
[1722409565527,0.0005,66569.0,66568.0,1.76745948]
[1722409566161,0.0005,66569.0,66568.0,1.76745947]
[1722409566921,0.0005,66569.0,66568.0,1.62765947]
[1722409567258,0.0005,66569.0,66568.0,1.63565947]
[1722409567710,0.00023708,66569.0,66568.0,1.17658243]
[1722409567910,0.00023708,66569.0,66568.0,1.18758243]
[1722409568109,0.00023708,66569.0,66568.0,1.19558243]
[1722409568533,0.00023708,66569.0,66568.0,1.20446074]
[1722409569028,0.00023708,66569.0,66568.0,1.20446073]
[1722409569233,0.00023708,66569.0,66568.0,1.18546073]
[1722409569429,0.00023708,66569.0,66568.0,0.88501673]
[1722409569629,0.00023708,66569.0,66568.0,0.89301673]
[1722409570308,0.00023708,66569.0,66568.0,0.89457093]
[1722409570513,0.00023708,66569.0,66568.0,0.90401673]
[1722409570775,0.14103708,66569.0,66568.0,0.02102842]
[1722409570974,0.1806413,66569.0,66568.0,0.02102842]
[1722409571289,0.1806413,66569.0,66568.0,0.17125042]
[1722409571490,0.1806413,66569.0,66568.0,0.47169442]
[1722409571898,0.1806413,66569.0,66568.0,0.46069442]
[1722409572192,0.1806413,66569.0,66568.0,0.76113842]
[1722409572328,0.1806413,66569.0,66568.0,0.55269442]
[1722409573328,0.1806413,66569.0,66568.0,0.25225042]
[1722409573980,0.1806413,66569.0,66568.0,0.55269442]
[1722409574496,0.1814713,66569.0,66568.0,0.55269442]
[1722409574725,0.1814713,66569.0,66568.0,0.85313842]
[1722409575341,0.1814713,66569.0,66568.0,0.55269442]
[1722409575792,0.1055713,66569.0,66568.0,0.55269442]
[1722409576868,0.1055713,66569.0,66568.0,0.55269441]
[1722409577167,0.10511726,66569.0,66568.0,0.55269441]
[1722409579191,0.10503066,66569.0,66568.0,0.55269441]
[1722409579745,0.10503066,66569.0,66568.0,0.10202841]
[1722409579746,0.4825837,66569.0,66568.0,0.10202841]
[1722409579944,0.7830237,66569.0,66568.0,0.00202841]
[1722409581179,1.0834637,66569.0,66568.0,0.00202841]
[1722409581912,1.0833987,66569.0,66568.0,0.00202841]
[1722409582618,0.3322987,66569.0,66568.0,0.00202841]
[1722409582975,0.19106726,66569.0,66568.0,0.00202841]
[1722409583188,0.04043422,66569.0,66568.0,0.75313841]
[1722409584824,0.04043422,66569.0,66568.0,0.75513841]
[1722409585041,0.04043422,66569.0,66568.0,0.75313841]
[1722409585390,0.04043422,66569.0,66568.0,0.75613841]
[1722409585635,0.04043422,66569.0,66568.0,1.12158241]
[1722409585835,0.04043422,66569.0,66568.0,1.22158241]
[1722409586083,0.00083,66569.0,66568.0,1.24458241]
[1722409586307,0.00083,66569.0,66568.0,1.2445824]
[1722409587074,0.00064754,66569.0,66568.0,1.2445824]
[1722409588351,0.03387047,66569.0,66568.0,0.8791384]
[1722409589569,0.03387047,66569.0,66568.0,1.1795824]
[1722409590675,0.03387047,66569.0,66568.0,0.8791384]
[1722409591178,0.03387047,66569.0,66568.0,1.1795824]
[1722409591382,0.03387047,66569.0,66568.0,0.87913839]
[1722409593151,0.03387047,66569.0,66568.0,0.85613839]
[1722409596203,0.03387047,66569.0,66568.0,0.55569439]
[1722409596558,0.17997047,66569.0,66568.0,0.10502839]
[1722409597073,0.17970143,66569.0,66568.0,0.10502839]
[1722409597426,0.48055447,66569.0,66568.0,0.10502839]
[1722409597624,0.78099447,66569.0,66568.0,0.00202839]
[1722409599974,0.33033447,66569.0,66568.0,0.00202839]
[1722409600179,0.09900143,66569.0,66568.0,0.00202839]
[1722409600377,0.09900143,66569.0,66568.0,0.15225039]
[1722409601597,0.03360143,66569.0,66568.0,0.15225039]
[1722409601810,0.03360143,66569.0,66568.0,0.45269439]
[1722409605055,0.03360143,66569.0,66568.0,0.75313839]
[1722409605494,0.03360143,66569.0,66568.0,0.45269439]
[1722409607108,0.03360143,66569.0,66568.0,0.45269438]
[1722409607828,0.03360143,66569.0,66568.0,0.00202838]
[1722409608027,0.10950143,66569.0,66568.0,0.00202838]
[1722409608774,0.10950143,66569.0,66568.0,0.00353738]
[1722409609153,0.10950143,66569.0,66568.0,0.15375938]
[1722409609312,0.10950143,66569.0,66568.0,0.15225038]
[1722409611152,0.03360143,66569.0,66568.0,0.15225038]
[1722409611800,0.03360143,66569.0,66568.0,0.00202838]
[1722409611986,0.03360143,66569.0,66568.0,0.00318825]
[1722409612841,0.03360143,66569.0,66568.0,0.00202838]
[1722409613264,0.03360143,66569.0,66568.0,0.15225038]
[1722409613904,0.03360143,66569.0,66568.0,0.00202838]
[1722409614350,0.03319197,66569.0,66568.0,0.00202838]
[1722409614944,0.03319197,66569.0,66568.0,0.0016]
[1722409615151,0.77443217,66569.0,66568.0,0.0016]
[1722409615351,1.15617217,66569.0,66568.0,0.0016]
[1722409616472,1.08082501,66569.0,66568.0,0.0016]
[1722409618414,1.38126501,66569.0,66568.0,0.0016]
[1722409619925,1.38099666,66569.0,66568.0,0.0016]
[1722409620799,1.38099666,66569.0,66568.0,0.0026]
[1722409621594,0.03292362,66569.0,66568.0,0.453266]
[1722409621795,0.03792362,66569.0,66568.0,0.701466]
[1722409622453,0.03292362,66569.0,66568.0,0.701466]
[1722409622684,0.03292362,66569.0,66568.0,1.00191]
[1722409623722,0.02792362,66569.0,66568.0,0.99991]
[1722409623970,0.03592362,66569.0,66568.0,1.00191]
[1722409624171,0.03092362,66569.0,66568.0,0.700466]
[1722409624284,0.02792362,66569.0,66568.0,0.1016]
[1722409624512,0.32877666,66569.0,66568.0,0.1056]
[1722409624754,0.62921666,66569.0,66568.0,0.0076]
[1722409624962,0.92965666,66569.0,66568.0,0.0076]
[1722409625274,1.07305666,66569.0,66568.0,0.0016]
[1722409625693,1.07605666,66569.0,66568.0,0.0016]
[1722409626311,1.07905666,66569.0,66568.0,0.0026]
[1722409626851,1.07605666,66569.0,66568.0,0.0026]
[1722409627066,0.77561666,66569.0,66568.0,0.0026]
[1722409627271,1.08105666,66569.0,66568.0,0.0036]
[1722409627472,1.07305666,66569.0,66568.0,0.0016]
[1722409627688,0.77261666,66569.0,66568.0,0.0016]
[1722409627887,1.07805666,66569.0,66568.0,0.0036]
[1722409628065,0.77761666,66569.0,66568.0,0.0036]
[1722409628290,1.07805666,66569.0,66568.0,0.0036]
[1722409628455,0.77761666,66569.0,66568.0,0.0036]
[1722409628654,1.07805666,66569.0,66568.0,0.0036]
[1722409628952,0.77761666,66569.0,66568.0,0.0036]
[1722409629791,0.47717666,66569.0,66568.0,0.0036]
[1722409630191,0.63421666,66569.0,66568.0,0.0036]
[1722409630628,0.62921666,66569.0,66568.0,0.0026]
[1722409630826,0.32877666,66569.0,66568.0,0.0026]
[1722409631064,0.33377666,66569.0,66568.0,0.0026]
[1722409631235,0.33377666,66569.0,66568.0,0.0036]
[1722409631591,0.17855666,66569.0,66568.0,0.0016]
[1722409631791,0.32877666,66569.0,66568.0,0.0016]
[1722409631989,0.33377666,66569.0,66568.0,0.0036]
[1722409632447,0.18355666,66569.0,66568.0,0.0036]
[1722409632821,0.33377666,66569.0,66568.0,0.0036]
[1722409633798,0.33377666,66569.0,66568.0,0.00328143]
[1722409634834,0.63421666,66569.0,66568.0,0.00328143]
[1722409635261,0.33377666,66569.0,66568.0,0.00328143]
[1722409637153,0.63421666,66569.0,66568.0,0.00328143]
[1722409637610,0.63421666,66569.0,66568.0,0.00298143]
[1722409638074,0.18355666,66569.0,66568.0,0.21570343]
[1722409638279,0.02792362,66569.0,66568.0,0.51514743]
[1722409638478,0.02792362,66569.0,66568.0,0.81459143]
[1722409638674,0.03292362,66569.0,66568.0,0.81559143]
[1722409638871,0.03292362,66569.0,66568.0,0.81659143]
[1722409639000,0.03292362,66569.0,66568.0,0.51614743]
[1722409639202,0.03292362,66569.0,66568.0,0.21570343]
[1722409639442,0.03292362,66569.0,66568.0,0.15320343]
[1722409639646,0.03292362,66569.0,66568.0,0.45364743]
[1722409639824,0.02792362,66569.0,66568.0,0.45264743]
[1722409640243,0.03265527,66569.0,66568.0,0.15320343]
[1722409640452,0.03265527,66569.0,66568.0,0.15411643]
[1722409640659,0.02765527,66569.0,66568.0,0.45256043]
[1722409640962,0.03348527,66569.0,66568.0,0.45256043]
[1722409641167,0.03348527,66569.0,66568.0,0.45356043]
[1722409641308,0.03348527,66569.0,66568.0,0.15311643]
[1722409641509,0.03348527,66569.0,66568.0,0.15211643]
[1722409641749,0.03348527,66569.0,66568.0,0.15301446]
[1722409641910,0.03348527,66569.0,66568.0,0.15311643]
[1722409642663,0.03348527,66569.0,66568.0,0.45356043]
[1722409643653,0.03348527,66569.0,66568.0,0.00289443]
[1722409644444,0.03348527,66569.0,66568.0,0.00444863]
[1722409644689,0.03348527,66569.0,66568.0,0.00289443]
[1722409645097,0.03348527,66569.0,66568.0,0.00444863]
[1722409645300,0.03348527,66569.0,66568.0,0.00289443]
[1722409645476,0.03348527,66569.0,66568.0,0.00444863]
[1722409645672,0.03348527,66569.0,66568.0,0.00289443]
[1722409646142,0.03348527,66569.0,66568.0,0.00444863]
[1722409646319,0.02848527,66569.0,66568.0,0.00289443]
[1722409646525,0.02848527,66569.0,66568.0,0.00444863]